[Event "Late-Titled-Tuesday-Blitz-February-27-2024"]
[Site "Chess.com"]
[Date "2024.02.27"]
[Round "9"]
[White "RantomOpening"]
[Black "AlexTruskavetsky"]
[Result "0-1"]
[WhiteElo "2567"]
[BlackElo "2702"]
[TimeControl "180+1"]
[EndTime "15:39:09 PST"]
[Termination "AlexTruskavetsky won by resignation"]

1. c4 {[%clk 0:03:00.9]} 1... g6 {[%clk 0:02:56.9]} 2. Nf3 {[%clk 0:03:00.9]}
2... Bg7 {[%clk 0:02:57]} 3. e4 {[%clk 0:03:01.3]} 3... d6 {[%clk 0:02:56.4]} 4.
d4 {[%clk 0:03:01.7]} 4... Nf6 {[%clk 0:02:56.2]} 5. Nc3 {[%clk 0:03:02.1]} 5...
O-O {[%clk 0:02:56.5]} 6. Be2 {[%clk 0:03:02.6]} 6... e5 {[%clk 0:02:57]} 7. Be3
{[%clk 0:03:03.2]} 7... Nc6 {[%clk 0:02:55.1]} 8. O-O {[%clk 0:03:03]} 8... h6
{[%clk 0:02:55.3]} 9. h3 {[%clk 0:03:02.3]} 9... Qe7 {[%clk 0:02:49.9]} 10. dxe5
{[%clk 0:02:59.4]} 10... Nxe5 {[%clk 0:02:48.2]} 11. Nxe5 {[%clk 0:02:59.5]}
11... dxe5 {[%clk 0:02:48.6]} 12. Nd5 {[%clk 0:02:59]} 12... Nxd5 {[%clk
0:02:48.8]} 13. cxd5 {[%clk 0:02:59.9]} 13... Rd8 {[%clk 0:02:48.2]} 14. Qb3
{[%clk 0:02:54.7]} 14... Kh8 {[%clk 0:02:41.4]} 15. Rac1 {[%clk 0:02:54.3]}
15... f5 {[%clk 0:02:41.3]} 16. f3 {[%clk 0:02:50.5]} 16... f4 {[%clk
0:02:33.1]} 17. Bc5 {[%clk 0:02:43.9]} 17... Qg5 {[%clk 0:02:31]} 18. Bf2 {[%clk
0:02:42.8]} 18... Bxh3 {[%clk 0:02:30.3]} 19. g4 {[%clk 0:02:33.1]} 19... fxg3
{[%clk 0:02:26.8]} 20. Be3 {[%clk 0:02:33]} 20... Qh4 {[%clk 0:02:27.4]} 21. Qc2
{[%clk 0:02:16.7]} 21... Bg2 {[%clk 0:02:22.8]} 0-1

[Event "Late-Titled-Tuesday-Blitz-February-27-2024"]
[Site "Chess.com"]
[Date "2024.02.27"]
[Round "9"]
[White "Anna20240"]
[Black "martinmena"]
[Result "0-1"]
[WhiteElo "1921"]
[BlackElo "2240"]
[TimeControl "180+1"]
[EndTime "15:39:56 PST"]
[Termination "martinmena won by resignation"]

1. d4 {[%clk 0:02:55.7]} 1... d5 {[%clk 0:02:53]} 2. c4 {[%clk 0:02:55.1]} 2...
e6 {[%clk 0:02:45.8]} 3. Nf3 {[%clk 0:02:54.6]} 3... Nf6 {[%clk 0:02:45.9]} 4.
g3 {[%clk 0:02:52.6]} 4... Be7 {[%clk 0:02:45.6]} 5. Bg2 {[%clk 0:02:52.3]} 5...
O-O {[%clk 0:02:46]} 6. Nbd2 {[%clk 0:02:52.4]} 6... b6 {[%clk 0:02:32.7]} 7.
O-O {[%clk 0:02:52.8]} 7... Bb7 {[%clk 0:02:31.6]} 8. cxd5 {[%clk 0:02:53.4]}
8... Nxd5 {[%clk 0:02:30.8]} 9. Re1 {[%clk 0:02:52.9]} 9... c5 {[%clk
0:02:30.7]} 10. e4 {[%clk 0:02:51.9]} 10... Nf6 {[%clk 0:02:30.2]} 11. dxc5
{[%clk 0:02:46]} 11... Bxc5 {[%clk 0:02:27.6]} 12. e5 {[%clk 0:02:34.9]} 12...
Ng4 {[%clk 0:02:21.1]} 13. Rf1 {[%clk 0:02:21.4]} 13... Nc6 {[%clk 0:02:06.8]}
14. Ne4 {[%clk 0:02:15.8]} 14... Nd4 {[%clk 0:01:54.7]} 15. Nxd4 {[%clk
0:02:12.5]} 15... Bxe4 {[%clk 0:01:40.4]} 16. Bxe4 {[%clk 0:02:06.8]} 16... Nxf2
{[%clk 0:01:40.3]} 17. Rxf2 {[%clk 0:02:06]} 17... Bxd4 {[%clk 0:01:40.2]} 18.
Bxa8 {[%clk 0:02:05.5]} 18... Bxf2+ {[%clk 0:01:39.6]} 19. Kxf2 {[%clk
0:02:05.8]} 19... Qxd1 {[%clk 0:01:39.7]} 0-1

[Event "Late-Titled-Tuesday-Blitz-February-27-2024"]
[Site "Chess.com"]
[Date "2024.02.27"]
[Round "9"]
[White "Laico"]
[Black "Pelusiansky"]
[Result "1-0"]
[WhiteElo "2406"]
[BlackElo "2528"]
[TimeControl "180+1"]
[EndTime "15:40:16 PST"]
[Termination "Laico won by resignation"]

1. e4 {[%clk 0:02:57.6]} 1... c6 {[%clk 0:02:57.6]} 2. d4 {[%clk 0:02:57.3]}
2... d5 {[%clk 0:02:58.1]} 3. f3 {[%clk 0:02:58]} 3... Qb6 {[%clk 0:02:56.8]} 4.
Nc3 {[%clk 0:02:57.3]} 4... dxe4 {[%clk 0:02:56.4]} 5. fxe4 {[%clk 0:02:57.6]}
5... e5 {[%clk 0:02:56.9]} 6. Nf3 {[%clk 0:02:56.5]} 6... exd4 {[%clk
0:02:57.2]} 7. Qxd4 {[%clk 0:02:57.4]} 7... Qxd4 {[%clk 0:02:53.9]} 8. Nxd4
{[%clk 0:02:58.3]} 8... Bc5 {[%clk 0:02:43.1]} 9. Be3 {[%clk 0:02:55.8]} 9...
Ne7 {[%clk 0:02:37.9]} 10. O-O-O {[%clk 0:02:55]} 10... O-O {[%clk 0:02:36]} 11.
Nf5 {[%clk 0:02:43.4]} 11... Bxe3+ {[%clk 0:02:33.4]} 12. Nxe3 {[%clk
0:02:44.3]} 12... Be6 {[%clk 0:02:30.8]} 13. Bc4 {[%clk 0:02:41]} 13... b5
{[%clk 0:02:12.9]} 14. Bxe6 {[%clk 0:02:40]} 14... fxe6 {[%clk 0:02:13.8]} 15.
Rd6 {[%clk 0:02:35.3]} 15... e5 {[%clk 0:01:53.2]} 16. Re6 {[%clk 0:02:19.2]}
16... Ng6 {[%clk 0:01:50.1]} 17. Nf5 {[%clk 0:02:15.5]} 17... Rc8 {[%clk
0:01:26.9]} 18. Rxg6 {[%clk 0:02:03.2]} 18... hxg6 {[%clk 0:01:24.2]} 19. Ne7+
{[%clk 0:02:03.3]} 19... Kf7 {[%clk 0:01:24.2]} 20. Nxc8 {[%clk 0:02:04.2]}
20... Ke6 {[%clk 0:01:24.5]} 21. Rd1 {[%clk 0:02:02]} 1-0

[Event "Late-Titled-Tuesday-Blitz-February-27-2024"]
[Site "Chess.com"]
[Date "2024.02.27"]
[Round "9"]
[White "reevecanada"]
[Black "rcmz"]
[Result "1-0"]
[WhiteElo "2597"]
[BlackElo "2224"]
[TimeControl "180+1"]
[EndTime "15:40:41 PST"]
[Termination "reevecanada won by resignation"]

1. e4 {[%clk 0:03:00.9]} 1... e6 {[%clk 0:02:58.8]} 2. Nf3 {[%clk 0:02:55.4]}
2... a6 {[%clk 0:02:58.6]} 3. Nc3 {[%clk 0:02:55.4]} 3... b5 {[%clk 0:02:58.7]}
4. d4 {[%clk 0:02:54.1]} 4... Bb7 {[%clk 0:02:58.9]} 5. Bd3 {[%clk 0:02:53.2]}
5... c5 {[%clk 0:02:58.1]} 6. dxc5 {[%clk 0:02:43.1]} 6... Bxc5 {[%clk 0:02:59]}
7. e5 {[%clk 0:02:42.6]} 7... d6 {[%clk 0:02:56.4]} 8. Ne4 {[%clk 0:02:42.3]}
8... Bxe4 {[%clk 0:02:47.5]} 9. Bxe4 {[%clk 0:02:43.2]} 9... d5 {[%clk
0:02:47.7]} 10. Bd3 {[%clk 0:02:41.8]} 10... Ne7 {[%clk 0:02:46.6]} 11. O-O
{[%clk 0:02:40.2]} 11... Qb6 {[%clk 0:02:45.7]} 12. c3 {[%clk 0:02:39.2]} 12...
Qa7 {[%clk 0:02:43.9]} 13. b4 {[%clk 0:02:38.1]} 13... Bb6 {[%clk 0:02:43.3]}
14. a4 {[%clk 0:02:37.1]} 14... bxa4 {[%clk 0:02:33.7]} 15. Rxa4 {[%clk
0:02:38]} 15... Qb7 {[%clk 0:02:29.9]} 16. Nd4 {[%clk 0:02:34]} 16... Bxd4
{[%clk 0:02:19.4]} 17. cxd4 {[%clk 0:02:32.5]} 17... Nec6 {[%clk 0:02:18.1]} 18.
Qg4 {[%clk 0:02:30.6]} 18... g6 {[%clk 0:02:14.2]} 19. Bd2 {[%clk 0:02:27.4]}
19... h5 {[%clk 0:02:11.2]} 20. Qh4 {[%clk 0:02:25.9]} 20... Nd7 {[%clk
0:02:05.2]} 21. Rfa1 {[%clk 0:02:23.5]} 21... Ncb8 {[%clk 0:02:04.1]} 22. b5
{[%clk 0:02:20.9]} 22... Nb6 {[%clk 0:02:02.1]} 23. bxa6 {[%clk 0:02:19.9]}
23... Qd7 {[%clk 0:01:53.9]} 24. Ra5 {[%clk 0:02:18]} 24... Nc4 {[%clk
0:01:46.4]} 25. Rc5 {[%clk 0:02:11.8]} 25... Rxa6 {[%clk 0:01:25.4]} 26. Rb1
{[%clk 0:02:04.5]} 26... Nxd2 {[%clk 0:01:09.9]} 27. Rxb8+ {[%clk 0:02:00.9]}
1-0

[Event "Late-Titled-Tuesday-Blitz-February-27-2024"]
[Site "Chess.com"]
[Date "2024.02.27"]
[Round "9"]
[White "emeli_chess"]
[Black "FernandoArauzAlonso"]
[Result "1-0"]
[WhiteElo "2443"]
[BlackElo "2550"]
[TimeControl "180+1"]
[EndTime "15:40:57 PST"]
[Termination "emeli_chess won by resignation"]

1. d4 {[%clk 0:03:00.9]} 1... Nf6 {[%clk 0:02:56.3]} 2. c4 {[%clk 0:03:00.6]}
2... g6 {[%clk 0:02:55.7]} 3. Nc3 {[%clk 0:03:00.3]} 3... Bg7 {[%clk 0:02:56]}
4. e4 {[%clk 0:03:00.6]} 4... d6 {[%clk 0:02:56.5]} 5. f3 {[%clk 0:03:00.3]}
5... O-O {[%clk 0:02:55.8]} 6. Be3 {[%clk 0:03:00.4]} 6... e5 {[%clk 0:02:56.2]}
7. d5 {[%clk 0:03:00.4]} 7... Nbd7 {[%clk 0:02:56.4]} 8. Bd3 {[%clk 0:02:53.1]}
8... a5 {[%clk 0:02:56.4]} 9. Nge2 {[%clk 0:02:52.7]} 9... Nc5 {[%clk
0:02:56.6]} 10. Bc2 {[%clk 0:02:52.3]} 10... c6 {[%clk 0:02:47.8]} 11. O-O
{[%clk 0:02:50.8]} 11... Qc7 {[%clk 0:02:37.1]} 12. a3 {[%clk 0:02:49.8]} 12...
Nh5 {[%clk 0:02:23.6]} 13. b4 {[%clk 0:02:46.8]} 13... axb4 {[%clk 0:02:24]} 14.
axb4 {[%clk 0:02:47.2]} 14... Rxa1 {[%clk 0:02:24.2]} 15. Qxa1 {[%clk
0:02:47.4]} 15... Nd7 {[%clk 0:02:24.5]} 16. Qa7 {[%clk 0:02:33.4]} 16... f5
{[%clk 0:01:59.2]} 17. exf5 {[%clk 0:02:30.1]} 17... e4 {[%clk 0:01:33.1]} 18.
dxc6 {[%clk 0:02:04.1]} 18... Qxc6 {[%clk 0:01:31]} 19. Bxe4 {[%clk 0:02:03.9]}
19... Qc7 {[%clk 0:01:20.6]} 20. fxg6 {[%clk 0:02:00.3]} 20... hxg6 {[%clk
0:01:12.2]} 21. Nd5 {[%clk 0:01:54.3]} 21... Qxc4 {[%clk 0:01:03.9]} 22. Ne7+
{[%clk 0:01:54.3]} 1-0

[Event "Late-Titled-Tuesday-Blitz-February-27-2024"]
[Site "Chess.com"]
[Date "2024.02.27"]
[Round "9"]
[White "grzechu96"]
[Black "tteshan"]
[Result "1-0"]
[WhiteElo "2748"]
[BlackElo "2601"]
[TimeControl "180+1"]
[EndTime "15:41:33 PST"]
[Termination "grzechu96 won by resignation"]

1. e4 {[%clk 0:03:00.9]} 1... c5 {[%clk 0:02:59.6]} 2. Nf3 {[%clk 0:03:01.3]}
2... Nc6 {[%clk 0:02:59.7]} 3. Bb5 {[%clk 0:03:01.2]} 3... e6 {[%clk 0:02:59.1]}
4. O-O {[%clk 0:03:00.7]} 4... Nge7 {[%clk 0:02:58.9]} 5. Re1 {[%clk 0:03:00.9]}
5... a6 {[%clk 0:02:56.5]} 6. Bf1 {[%clk 0:03:01.5]} 6... d5 {[%clk 0:02:56.1]}
7. d3 {[%clk 0:03:02.1]} 7... dxe4 {[%clk 0:02:54.4]} 8. dxe4 {[%clk 0:03:01.9]}
8... Qxd1 {[%clk 0:02:55.3]} 9. Rxd1 {[%clk 0:03:02.7]} 9... Ng6 {[%clk
0:02:54.2]} 10. a4 {[%clk 0:02:58.3]} 10... Be7 {[%clk 0:02:54]} 11. Na3 {[%clk
0:02:58.8]} 11... Nge5 {[%clk 0:02:46.9]} 12. Nxe5 {[%clk 0:02:58.6]} 12... Nxe5
{[%clk 0:02:47.8]} 13. f4 {[%clk 0:02:48.5]} 13... Nc6 {[%clk 0:02:41]} 14. Nc4
{[%clk 0:02:48.9]} 14... Bd7 {[%clk 0:01:58.7]} 15. c3 {[%clk 0:02:43.9]} 15...
Rd8 {[%clk 0:01:57.2]} 16. a5 {[%clk 0:02:41.1]} 16... O-O {[%clk 0:01:55.7]}
17. Be3 {[%clk 0:02:40.5]} 17... f6 {[%clk 0:01:46.8]} 18. g3 {[%clk 0:02:39.5]}
18... Be8 {[%clk 0:01:43]} 19. Rxd8 {[%clk 0:02:36.4]} 19... Nxd8 {[%clk
0:01:43.9]} 20. Rd1 {[%clk 0:02:34.2]} 20... Bc6 {[%clk 0:01:35.1]} 21. Nd6
{[%clk 0:02:34.5]} 21... Bxd6 {[%clk 0:01:30.1]} 22. Rxd6 {[%clk 0:02:35.4]}
22... Bxe4 {[%clk 0:01:29.1]} 23. Bxc5 {[%clk 0:02:34.1]} 23... Re8 {[%clk
0:01:25.7]} 24. Bc4 {[%clk 0:02:31.6]} 24... Bf5 {[%clk 0:01:12.5]} 25. Rd7
{[%clk 0:02:32]} 25... Be4 {[%clk 0:00:53.8]} 26. Kf2 {[%clk 0:02:26.4]} 26...
Bc6 {[%clk 0:00:52]} 27. Rc7 {[%clk 0:02:26.1]} 27... h6 {[%clk 0:00:34]} 28.
Be7 {[%clk 0:02:14.1]} 28... Kh7 {[%clk 0:00:33.5]} 29. Bxf6 {[%clk 0:02:13.6]}
29... Rg8 {[%clk 0:00:25.1]} 30. Be5 {[%clk 0:02:06.5]} 1-0

[Event "Late-Titled-Tuesday-Blitz-February-27-2024"]
[Site "Chess.com"]
[Date "2024.02.27"]
[Round "9"]
[White "NateSolon"]
[Black "adricalderon8"]
[Result "1-0"]
[WhiteElo "2683"]
[BlackElo "2507"]
[TimeControl "180+1"]
[EndTime "15:41:45 PST"]
[Termination "NateSolon won by resignation"]

1. d4 {[%clk 0:03:00.9]} 1... Nf6 {[%clk 0:02:57.7]} 2. Bf4 {[%clk 0:03:00.1]}
2... c5 {[%clk 0:02:53]} 3. d5 {[%clk 0:02:57.9]} 3... d6 {[%clk 0:02:50.4]} 4.
Nc3 {[%clk 0:02:57.3]} 4... Qb6 {[%clk 0:02:45.8]} 5. Qc1 {[%clk 0:02:56.8]}
5... g6 {[%clk 0:02:43.3]} 6. e4 {[%clk 0:02:56.6]} 6... Bg7 {[%clk 0:02:40.2]}
7. Nf3 {[%clk 0:02:56.1]} 7... O-O {[%clk 0:02:39.4]} 8. Be2 {[%clk 0:02:55.6]}
8... Bg4 {[%clk 0:02:39.5]} 9. O-O {[%clk 0:02:53.2]} 9... Nbd7 {[%clk
0:02:38.8]} 10. Re1 {[%clk 0:02:49.3]} 10... Nh5 {[%clk 0:02:36.2]} 11. Bh6
{[%clk 0:02:37.2]} 11... Bxf3 {[%clk 0:02:32.8]} 12. Bxg7 {[%clk 0:02:27.2]}
12... Kxg7 {[%clk 0:02:23.3]} 13. Bxf3 {[%clk 0:02:27.3]} 13... Nhf6 {[%clk
0:02:23.7]} 14. Be2 {[%clk 0:02:23.2]} 14... Qb4 {[%clk 0:02:17.7]} 15. a3
{[%clk 0:02:19.8]} 15... Qd4 {[%clk 0:02:10.2]} 16. Qf4 {[%clk 0:02:14.4]} 16...
Qe5 {[%clk 0:02:06.1]} 17. Qe3 {[%clk 0:02:12.5]} 17... a6 {[%clk 0:02:02.6]}
18. Rad1 {[%clk 0:02:08.7]} 18... b5 {[%clk 0:02:01.9]} 19. f4 {[%clk
0:02:07.7]} 19... Nxd5 {[%clk 0:01:54.8]} 20. Rxd5 {[%clk 0:02:02.9]} 20... Qe6
{[%clk 0:01:54.2]} 21. Qg3 {[%clk 0:01:45.9]} 21... b4 {[%clk 0:01:52.2]} 22.
Bg4 {[%clk 0:01:40.8]} 22... Qf6 {[%clk 0:01:50.4]} 23. Bxd7 {[%clk 0:01:35.4]}
23... bxc3 {[%clk 0:01:50.5]} 24. Qxc3 {[%clk 0:01:35.2]} 24... Qxc3 {[%clk
0:01:50.8]} 25. bxc3 {[%clk 0:01:36.1]} 25... Rfb8 {[%clk 0:01:49.7]} 26. e5
{[%clk 0:01:28.4]} 26... Rb6 {[%clk 0:01:44.3]} 27. exd6 {[%clk 0:01:25.5]}
27... exd6 {[%clk 0:01:45.2]} 28. Ba4 {[%clk 0:01:23.2]} 28... Kf6 {[%clk
0:01:42.2]} 29. Bb3 {[%clk 0:01:19.5]} 29... a5 {[%clk 0:01:42]} 30. a4 {[%clk
0:01:18.5]} 30... h5 {[%clk 0:01:42]} 31. Kf2 {[%clk 0:01:15.4]} 31... Ra7
{[%clk 0:01:40.5]} 32. Red1 {[%clk 0:01:13.3]} 32... Ke7 {[%clk 0:01:39.1]} 33.
f5 {[%clk 0:01:11.1]} 33... g5 {[%clk 0:01:38.2]} 34. f6+ {[%clk 0:01:10.3]}
34... Kxf6 {[%clk 0:01:35.8]} 35. Rxd6+ {[%clk 0:01:10.6]} 35... Rxd6 {[%clk
0:01:36.5]} 36. Rxd6+ {[%clk 0:01:10.9]} 36... Ke5 {[%clk 0:01:37.2]} 37. Rc6
{[%clk 0:01:09]} 37... Rd7 {[%clk 0:01:32.4]} 38. Rxc5+ {[%clk 0:01:08.2]} 38...
Kf4 {[%clk 0:01:32.6]} 39. Rd5 {[%clk 0:01:06.4]} 39... Rxd5 {[%clk 0:01:30.6]}
40. Bxd5 {[%clk 0:01:06.2]} 40... f6 {[%clk 0:01:31.5]} 41. c4 {[%clk 0:01:06]}
1-0

[Event "Late-Titled-Tuesday-Blitz-February-27-2024"]
[Site "Chess.com"]
[Date "2024.02.27"]
[Round "9"]
[White "Adar_07"]
[Black "AryanTari"]
[Result "1-0"]
[WhiteElo "2805"]
[BlackElo "2926"]
[TimeControl "180+1"]
[EndTime "15:41:50 PST"]
[Termination "Adar_07 won by resignation"]

1. e4 {[%clk 0:03:00.9]} 1... e5 {[%clk 0:02:56.2]} 2. Nf3 {[%clk 0:03:00.6]}
2... Nc6 {[%clk 0:02:55.8]} 3. Bb5 {[%clk 0:03:01.3]} 3... Nge7 {[%clk
0:02:54.5]} 4. Nc3 {[%clk 0:02:58.3]} 4... Ng6 {[%clk 0:02:50.6]} 5. Ne2 {[%clk
0:02:39.2]} 5... d5 {[%clk 0:02:41.9]} 6. exd5 {[%clk 0:02:36.6]} 6... Qxd5
{[%clk 0:02:41.6]} 7. Nc3 {[%clk 0:02:37.2]} 7... Qd6 {[%clk 0:02:37.8]} 8. d4
{[%clk 0:02:36.5]} 8... exd4 {[%clk 0:02:34.1]} 9. Qxd4 {[%clk 0:02:37.4]} 9...
Bd7 {[%clk 0:02:30.4]} 10. Qxd6 {[%clk 0:02:33.7]} 10... Bxd6 {[%clk 0:02:31.3]}
11. Be3 {[%clk 0:02:32.2]} 11... O-O-O {[%clk 0:02:16.6]} 12. O-O-O {[%clk
0:02:30]} 12... a6 {[%clk 0:02:14.7]} 13. Ba4 {[%clk 0:02:26.6]} 13... Nf4
{[%clk 0:02:03.6]} 14. Rxd6 {[%clk 0:02:25.5]} 14... cxd6 {[%clk 0:01:35.8]} 15.
Bxf4 {[%clk 0:02:25.1]} 15... Be6 {[%clk 0:01:36.7]} 16. Ne4 {[%clk 0:02:21.8]}
16... b5 {[%clk 0:01:31.5]} 17. Bb3 {[%clk 0:02:21.2]} 17... Bxb3 {[%clk
0:01:31.4]} 18. axb3 {[%clk 0:02:22.1]} 18... Ne5 {[%clk 0:01:18.3]} 19. Nxe5
{[%clk 0:02:10.7]} 19... dxe5 {[%clk 0:01:18.4]} 20. Bxe5 {[%clk 0:02:11.6]}
20... f6 {[%clk 0:01:07.8]} 21. Nxf6 {[%clk 0:01:59.5]} 21... Rhf8 {[%clk
0:00:41.6]} 22. Ne4 {[%clk 0:01:58.9]} 22... Kb7 {[%clk 0:00:38]} 23. Bxg7
{[%clk 0:01:51.2]} 23... Rg8 {[%clk 0:00:37.1]} 24. Be5 {[%clk 0:01:49.3]} 24...
Rxg2 {[%clk 0:00:35.4]} 25. Bg3 {[%clk 0:01:48.7]} 25... h5 {[%clk 0:00:35.6]}
26. h4 {[%clk 0:01:44.6]} 26... Rd4 {[%clk 0:00:34.9]} 27. Re1 {[%clk
0:01:43.8]} 27... Kc6 {[%clk 0:00:31.6]} 28. Nf6 {[%clk 0:01:41.9]} 28... a5
{[%clk 0:00:28.2]} 29. c3 {[%clk 0:01:38.9]} 1-0

[Event "Late-Titled-Tuesday-Blitz-February-27-2024"]
[Site "Chess.com"]
[Date "2024.02.27"]
[Round "9"]
[White "noblerone"]
[Black "NovakRatko"]
[Result "1-0"]
[WhiteElo "2470"]
[BlackElo "2456"]
[TimeControl "180+1"]
[EndTime "15:42:16 PST"]
[Termination "noblerone won by checkmate"]

1. d4 {[%clk 0:02:59.9]} 1... d5 {[%clk 0:02:59.5]} 2. c4 {[%clk 0:02:56.3]}
2... c5 {[%clk 0:02:59.7]} 3. dxc5 {[%clk 0:02:53.2]} 3... d4 {[%clk 0:02:59]}
4. Nf3 {[%clk 0:02:51.7]} 4... Nc6 {[%clk 0:02:58.9]} 5. e3 {[%clk 0:02:49.7]}
5... e5 {[%clk 0:02:59.2]} 6. exd4 {[%clk 0:02:49.7]} 6... exd4 {[%clk
0:03:00.1]} 7. Bd3 {[%clk 0:02:48.6]} 7... Qe7+ {[%clk 0:02:59.9]} 8. Be2 {[%clk
0:02:46.7]} 8... Bf5 {[%clk 0:02:57.3]} 9. O-O {[%clk 0:02:32.1]} 9... O-O-O
{[%clk 0:02:49.8]} 10. Bd3 {[%clk 0:02:25.9]} 10... Qxc5 {[%clk 0:02:45.3]} 11.
Bf4 {[%clk 0:02:19.8]} 11... Bg4 {[%clk 0:02:42.6]} 12. Na3 {[%clk 0:02:08.1]}
12... Bd6 {[%clk 0:02:40.4]} 13. Bxd6 {[%clk 0:02:05.3]} 13... Rxd6 {[%clk
0:02:37.4]} 14. Be4 {[%clk 0:01:39]} 14... Nf6 {[%clk 0:02:33.7]} 15. Bxc6
{[%clk 0:01:34.8]} 15... bxc6 {[%clk 0:02:18.3]} 16. Qd3 {[%clk 0:01:21.9]}
16... Qf5 {[%clk 0:02:09.6]} 17. Qxf5+ {[%clk 0:01:08.3]} 17... Bxf5 {[%clk
0:02:10.5]} 18. c5 {[%clk 0:01:09.1]} 18... Rd5 {[%clk 0:02:08.6]} 19. b4 {[%clk
0:01:08.6]} 19... Bg4 {[%clk 0:02:00.3]} 20. Nc4 {[%clk 0:01:04.3]} 20... Bxf3
{[%clk 0:01:48.4]} 21. gxf3 {[%clk 0:01:04.2]} 21... Kc7 {[%clk 0:01:48.6]} 22.
Rfe1 {[%clk 0:01:02.3]} 22... Rhd8 {[%clk 0:01:45.7]} 23. Rad1 {[%clk
0:00:50.2]} 23... Nh5 {[%clk 0:01:33.7]} 24. Nd6 {[%clk 0:00:46.6]} 24... f5
{[%clk 0:01:09]} 25. Re7+ {[%clk 0:00:33.2]} 25... Rd7 {[%clk 0:01:08]} 26. Re8
{[%clk 0:00:33.4]} 26... Nf4 {[%clk 0:01:02.6]} 27. Rc8# {[%clk 0:00:32.7]} 1-0

[Event "Late-Titled-Tuesday-Blitz-February-27-2024"]
[Site "Chess.com"]
[Date "2024.02.27"]
[Round "9"]
[White "campochess"]
[Black "giomar27"]
[Result "0-1"]
[WhiteElo "2205"]
[BlackElo "2404"]
[TimeControl "180+1"]
[EndTime "15:42:17 PST"]
[Termination "giomar27 won by resignation"]

1. c4 {[%clk 0:02:50.4]} 1... g6 {[%clk 0:02:58.9]} 2. Nc3 {[%clk 0:02:50.1]}
2... Bg7 {[%clk 0:02:59.6]} 3. d4 {[%clk 0:02:50.2]} 3... a6 {[%clk 0:02:58.1]}
4. Nf3 {[%clk 0:02:49.9]} 4... c5 {[%clk 0:02:56.8]} 5. d5 {[%clk 0:02:49.4]}
5... b5 {[%clk 0:02:56.3]} 6. e4 {[%clk 0:02:38.2]} 6... b4 {[%clk 0:02:55.5]}
7. Ne2 {[%clk 0:02:37.2]} 7... d6 {[%clk 0:02:55.8]} 8. Rb1 {[%clk 0:02:36.2]}
8... e5 {[%clk 0:02:54.9]} 9. g3 {[%clk 0:02:32.7]} 9... Ne7 {[%clk 0:02:54.7]}
10. Bg2 {[%clk 0:02:32.6]} 10... O-O {[%clk 0:02:55]} 11. O-O {[%clk 0:02:32]}
11... h6 {[%clk 0:02:55.3]} 12. Ne1 {[%clk 0:02:31]} 12... f5 {[%clk 0:02:54.6]}
13. f4 {[%clk 0:02:28.4]} 13... Nd7 {[%clk 0:02:52.6]} 14. Nd3 {[%clk
0:02:25.8]} 14... fxe4 {[%clk 0:02:47.1]} 15. Bxe4 {[%clk 0:02:24.3]} 15... Nf5
{[%clk 0:02:47.3]} 16. Bxf5 {[%clk 0:02:20.2]} 16... Rxf5 {[%clk 0:02:45.3]} 17.
fxe5 {[%clk 0:02:19.7]} 17... Nxe5 {[%clk 0:02:42.3]} 18. Rxf5 {[%clk
0:02:17.5]} 18... Bxf5 {[%clk 0:02:40.2]} 19. Nef4 {[%clk 0:02:02.7]} 19... g5
{[%clk 0:02:07]} 20. g4 {[%clk 0:01:49.1]} 20... Bxg4 {[%clk 0:02:01.5]} 21. Qb3
{[%clk 0:01:43.6]} 21... Nf3+ {[%clk 0:01:59.5]} 22. Kf2 {[%clk 0:01:41.9]}
22... Nd4 {[%clk 0:01:58.9]} 23. Qa4 {[%clk 0:01:36.8]} 23... gxf4 {[%clk
0:01:58.5]} 24. Bxf4 {[%clk 0:01:35.9]} 24... Qh4+ {[%clk 0:01:55.8]} 25. Bg3
{[%clk 0:01:35.5]} 25... Qf6+ {[%clk 0:01:56.1]} 26. Nf4 {[%clk 0:01:30.2]}
26... Re8 {[%clk 0:01:53.6]} 27. Qxe8+ {[%clk 0:01:25.9]} 27... Kh7 {[%clk
0:01:53.1]} 28. Re1 {[%clk 0:01:16.5]} 28... Nf3 {[%clk 0:01:52.8]} 29. Re2
{[%clk 0:01:10.6]} 29... Qd4+ {[%clk 0:01:49.9]} 30. Kg2 {[%clk 0:01:08.2]}
30... Qd1 {[%clk 0:01:49.4]} 31. Qe4+ {[%clk 0:01:01]} 31... Kg8 {[%clk
0:01:47.5]} 32. Bf2 {[%clk 0:00:55.4]} 32... Ne5 {[%clk 0:01:43.4]} 33. Re1
{[%clk 0:00:48.2]} 33... Bf3+ {[%clk 0:01:42.8]} 34. Kg3 {[%clk 0:00:47]} 34...
Qd2 {[%clk 0:01:28.1]} 35. Re3 {[%clk 0:00:32.8]} 35... Bxe4 {[%clk 0:01:26.9]}
0-1